[Event "IIFL Wealth  4th Mumbai Junior U-13"]
[Site "Mumbai"]
[Date "2019.01.05"]
[Round "7"]
[White "Shah Jeet"]
[Black "Bhagyashree Patil"]
[Result "1-0"]
[ECO "C54"]
[WhiteElo "1904"]
[BlackElo "1758"]
[Annotator "NA RC"]
[PlyCount "115"]
[EventDate "2018.12.30"]
[EventType "swiss"]
[EventCountry "IND"]
[SourceTitle "playchess.com"]
[Source "ChessBase"]
[SourceQuality "1"]
[TimeControl "40/5400+30:1800+30"]

1. e4 {[%emt 0:00:00]} e5 {[%emt 0:00:46]} 2. Nf3 {[%emt 0:00:16]} Nc6 {[%emt 0:00:08]} 3. Bc4 {[%emt 0:00:16]} Bc5 {[%emt 0:01:17]} 4. c3 {[%emt 0:02:05]} Nf6 {[%emt 0:00:12]} 5. d3 {[%emt 0:00:04]} d6 {[%emt 0:01:41]} 6. Bb3 {[%emt 0:01:07]} Bb6 {[%emt 0:03:26]} 7. Nbd2 {[%emt 0:06:15] C54: Giuoco Piano: 4 c3 Nf6, main lines with 5 d4 and 5 d3} (7. a4 a6 8. Na3 Ne7 9. a5 Ba7 10. Bg5 Ng6 11. Nh4 Nxh4 12. Bxh4 h6 13. Nc2 Qe7 14. Qe2 c6 {0-1 (84) Rapport,R (2707)-Ma,Q (2637) China 2017}) 7... a6 {[%emt 0:04:12]} 8. O-O {[%emt 0:08:33]} O-O {[%emt 0:00:11]} 9. Nc4 {[%emt 0:02:32]} Ba7 {[%emt 0:02:21]} 10. Bg5 {[%emt 0:02:13] LiveBook: 4 Games} h6 {[%emt 0:14:43]} 11. Bh4 {[%emt 0:01:22]} Ne7 {[%emt 0:03:26]} 12. Bxf6 $1 {[%emt 0:05:43]} gxf6 {[%emt 0:00:02]} 13. Nh4 {[%emt 0:00:20]} Kh7 $146 {[%emt 0:15:05]} ({Predecessor:} 13... f5 14. Qh5 fxe4 15. Qxh6 exd3 16. Rae1 Nf5 17. Nxf5 Bxf5 18. Ne3 Bxe3 19. Rxe3 d5 20. Rxe5 Bg6 21. Rxd5 Qf6 22. Rg5 {1-0 (21) Bojkov,D (2542)-Stjazhkina,O (2240) Groningen 2010}) 14. Ne3 {[%emt 0:03:19]} c6 {[%emt 0:07:12]} 15. Qf3 {[%emt 0:26:31]} ({White should play} 15. Qh5 $18) 15... Ng6 {[%emt 0:06:24]} (15... f5 $16) 16. Nhf5 {[%emt 0:03:31]} Ne7 {[%emt 0:04:04]} 17. Ng3 {[%emt 0:18:30]} Ng6 {[%emt 0:03:20]} 18. Nh5 {[%emt 0:02:03]} Nh4 {[%emt 0:02:07] [#]} (18... f5 $16) 19. Qg3 $1 {[%emt 0:02:13]} ({And not} 19. Qxf6 Qxf6 20. Nxf6+ Kg6 $17) 19... Ng6 {[%emt 0:00:22]} 20. Nf5 {[%emt 0:00:58]} Be6 {[%emt 0:02:38]} 21. Qh3 {[%emt 0:00:50]} ({Worse is} 21. Bxe6 fxe6 22. Nh4 Rg8 $11) 21... Rh8 {[%emt 0:02:28]} 22. Nhg3 {[%emt 0:08:51]} Qf8 {[%emt 0:01:26]} 23. Nh5 {[%emt 0:00:59]} Qd8 {[%emt 0:01:03]} 24. Bxe6 {[%emt 0:02:13]} fxe6 {[%emt 0:00:02]} 25. Nxh6 {[%emt 0:00:41]} Kxh6 {[%emt 0:00:49]} 26. Nf4+ {[%emt 0:00:01]} Kg7 {[%emt 0:00:17]} 27. Nxe6+ {[%emt 0:00:02]} Kf7 {[%emt 0:02:30]} 28. Nxd8+ {[%emt 0:00:10]} Raxd8 {[%emt 0:00:01]} 29. Qf3 {[%emt 0:01:00]} Rdg8 {[%emt 0:00:49]} 30. Qd1 {[%emt 0:01:11]} Rg7 {[%emt 0:01:27]} 31. Qb3+ {[%emt 0:00:27] Double Attack} Kf8 {[%emt 0:01:03]} 32. Qe6 {[%emt 0:00:14] Double Attack} Rf7 {[%emt 0:03:04]} 33. Qxd6+ {[%emt 0:00:24]} Kg7 {[%emt 0:00:01]} 34. g3 {[%emt 0:00:22]} Nf8 {[%emt 0:00:21]} 35. Kg2 {[%emt 0:01:03]} Rd7 {[%emt 0:01:27]} 36. Qb4 {[%emt 0:00:33]} Ne6 {[%emt 0:00:01]} 37. Rad1 {[%emt 0:00:35]} Rg8 {[%emt 0:00:13]} 38. Qc4 {[%emt 0:00:42]} Rd6 {[%emt 0:00:37]} 39. Qb4 {[%emt 0:00:35]} Rd7 {[%emt 0:00:02]} 40. Qb3 {[%emt 0:00:00]} Re7 {[%emt 0:00:00]} 41. Kf3 {[%emt 0:03:07]} Rd8 {[%emt 0:01:54]} 42. Ke2 {[%emt 0:00:15]} Nc5 {[%emt 0:00:28]} 43. Qc2 $18 {[%emt 0:00:14]} Kf7 {[%emt 0:01:01]} 44. h4 {[%emt 0:00:43]} Ne6 {[%emt 0:00:37]} 45. h5 {[%emt 0:01:03]} Rh8 {[%emt 0:00:15]} 46. Rh1 {[%emt 0:00:14]} Ke8 {[%emt 0:00:12]} 47. h6 {[%emt 0:00:14]} Reh7 {[%emt 0:00:11]} 48. Qd2 {[%emt 0:00:59]} Rd7 {[%emt 0:00:16]} 49. Rh5 {[%emt 0:00:47]} Nc5 {[%emt 0:00:38]} 50. Qe3 {[%emt 0:00:34]} b5 {[%emt 0:00:03]} 51. Qf3 {[%emt 0:00:14]} Rf7 {[%emt 0:00:29]} 52. Qf5 {[%emt 0:00:11]} Ke7 {[%emt 0:01:18]} 53. d4 {[%emt 0:00:46]} Ne6 {[%emt 0:00:06]} 54. d5 {[%emt 0:00:23]} cxd5 {[%emt 0:00:08]} 55. exd5 {[%emt 0:00:49]} Nc5 {[%emt 0:00:18]} 56. b4 {[%emt 0:00:22]} Nd7 {[%emt 0:00:58]} 57. Qe6+ {[%emt 0:00:22]} Kf8 {[%emt 0:00:01]} 58. Qxa6 {[%emt 0:00:05]} 1-0

[Event "IIFL Wealth  4th Mumbai Junior U-13"]
[Site "Mumbai"]
[Date "2019.01.05"]
[Round "7"]
[White "Aditya Varun Gampa"]
[Black "Laddha, Yash Jayesh"]
[Result "1-0"]
[ECO "B76"]
[WhiteElo "1809"]
[BlackElo "1449"]
[Annotator "NA RC"]
[PlyCount "85"]
[EventDate "2018.12.30"]
[EventType "swiss"]
[EventCountry "IND"]
[SourceTitle "playchess.com"]
[Source "ChessBase"]
[SourceQuality "1"]
[TimeControl "40/5400+30:1800+30"]

1. e4 {[%emt 0:08:41]} c5 {[%emt 0:00:00]} 2. Nf3 {[%emt 0:00:15]} d6 {[%emt 0:00:00]} 3. d4 {[%emt 0:00:09]} cxd4 {[%emt 0:00:00]} 4. Nxd4 {[%emt 0:00:11]} Nf6 {[%emt 0:00:00]} 5. Nc3 {[%emt 0:00:09]} g6 {[%emt 0:00:00]} 6. Be3 {[%emt 0:00:32]} Bg7 {[%emt 0:00:00]} 7. f3 {[%emt 0:00:11]} O-O {[%emt 0:00:11]} 8. Qd2 {[%emt 0:00:04]} Nc6 {[%emt 0:00:04]} 9. g4 {[%emt 0:00:08]} Be6 {[%emt 0:00:18]} 10. Nxe6 {[%emt 0:00:12]} fxe6 {[%emt 0:00:06]} 11. O-O-O {[%emt 0:00:08] B76: Sicilian Dragon: Yugoslav Attack, 9 g4 and 9 0-0-0} d5 {[%emt 0:13:04]} (11... Ne5 12. Be2 Qc8 13. h4 Nfd7 14. h5 Nc4 15. Bxc4 Qxc4 16. hxg6 hxg6 17. f4 Bxc3 18. bxc3 Nf6 19. Bd4 e5 20. fxe5 dxe5 {1-0 (41) Cornette,M (2611)-Jones,G (2640) chess.com INT 2018}) 12. exd5 {[%emt 0:05:43]} exd5 $146 {[%emt 0:02:29]} ({Predecessor:} 12... Nxd5 13. Nxd5 exd5 14. f4 d4 15. Bc4+ Kh8 16. Bf2 Qd6 17. Bg3 Qc5 18. Be6 b5 {1-0 (34) Cori Quispe,K (2487)-Romero Pallares,D (2202) Barcelona 2018}) 13. Bg2 {[%emt 0:06:31]} e6 {[%emt 0:06:31]} 14. Bh6 {[%emt 0:01:40]} (14. Nb5 $14) 14... Qe7 {[%emt 0:17:21]} (14... Bxh6 $15 15. Qxh6 Qb6) 15. Bxg7 {[%emt 0:02:16]} Qxg7 {[%emt 0:02:01]} 16. h4 {[%emt 0:02:11]} a6 {[%emt 0:03:49]} 17. h5 {[%emt 0:01:20]} g5 {[%emt 0:06:13]} 18. Rde1 {[%emt 0:04:44]} Rae8 {[%emt 0:11:13]} 19. h6 {[%emt 0:01:09]} Qg6 {[%emt 0:02:03]} 20. Bf1 {[%emt 0:01:28]} d4 {[%emt 0:11:38]} 21. Ne2 {[%emt 0:03:37]} Nd5 {[%emt 0:05:29]} (21... Rc8 $14) 22. Ng3 {[%emt 0:06:05]} (22. Nxd4 $18 {and White stays clearly on top.} Nxd4 23. Qxd4) 22... Nf4 {[%emt 0:04:55]} 23. Ne4 {[%emt 0:01:25]} Rd8 {[%emt 0:03:11]} (23... Ne5 $11 24. Qxd4 Nxf3 {[%mdl 64] Double Attack} 25. Qg7+ Qxg7 26. hxg7 Kxg7) 24. Kb1 {[%emt 0:02:40]} (24. Nc5 $14) 24... Ne5 {[%emt 0:02:11]} 25. Nxg5 {[%emt 0:01:58] [#]} Qxg5 $2 {[%emt 0:03:25] [#]} ({Much weaker is} 25... Rd5 $6 26. Rxe5 Rxe5 27. Ne4 $11) (25... d3 $1 $17 26. cxd3 Nexd3) 26. Rh5 $1 {[%emt 0:00:16] [#]} Qf6 $2 {[%emt 0:01:49]} (26... Qxh5 $1 $14 {[%mdl 512]} 27. gxh5 Nxf3 {[%mdl 64] Double Attack}) 27. Rhxe5 {[%emt 0:00:26]} Kh8 {[%emt 0:00:55]} (27... Rd5 $142 28. Rxd5 exd5) 28. a3 {[%emt 0:02:03]} b5 {[%emt 0:01:22]} 29. g5 {[%emt 0:00:24]} Qf7 {[%emt 0:01:41]} 30. Bd3 {[%emt 0:00:42]} Nxd3 {[%emt 0:00:48]} 31. Qxd3 {[%emt 0:00:09]} Qxf3 {[%emt 0:00:18]} 32. Qxf3 {[%emt 0:00:09]} Rxf3 {[%emt 0:00:04]} 33. Rxe6 {[%emt 0:00:07]} a5 $18 {[%emt 0:00:35]} 34. Re7 {[%emt 0:00:32]} Rdf8 {[%emt 0:01:05]} 35. Rb7 {[%emt 0:00:18]} R3f5 {[%emt 0:00:30]} 36. g6 {[%emt 0:00:47]} hxg6 {[%emt 0:00:33]} 37. Ree7 {[%emt 0:00:08]} Rf1+ {[%emt 0:00:55]} 38. Ka2 {[%emt 0:00:02]} R1f7 {[%emt 0:00:31]} 39. Rxf7 {[%emt 0:00:09]} Rxf7 {[%emt 0:00:03]} 40. Rxf7 {[%emt 0:00:00]} g5 {[%emt 0:00:00]} 41. Rd7 {[%emt 0:00:20]} g4 {[%emt 0:00:10]} 42. Rxd4 {[%emt 0:00:03]} g3 {[%emt 0:00:05]} 43. Rg4 {[%emt 0:00:04]} 1-0

[Event "IIFL Wealth  4th Mumbai Junior U-13"]
[Site "Mumbai"]
[Date "2019.01.05"]
[Round "7"]
[White "Barde Om"]
[Black "Pawar, Harshit"]
[Result "0-1"]
[ECO "B00"]
[WhiteElo "1801"]
[BlackElo "1671"]
[Annotator "NA"]
[PlyCount "120"]
[EventDate "2018.12.30"]
[EventType "swiss"]
[EventCountry "IND"]
[SourceTitle "playchess.com"]
[Source "ChessBase"]
[SourceQuality "1"]
[TimeControl "40/5400+30:1800+30"]

1. e4 {[%emt 0:00:00]} Nc6 {[%emt 0:00:06]} 2. d4 {[%emt 0:02:03]} e5 {[%emt 0:03:51]} 3. d5 {[%emt 0:05:51]} Nce7 {[%emt 0:02:14]} 4. c4 {[%emt 0:00:39]} Nf6 {[%emt 0:03:02]} 5. Nc3 {[%emt 0:00:59]} Ng6 {[%emt 0:02:01]} 6. Bd3 {[%emt 0:05:00]} Bc5 {[%emt 0:02:45]} 7. h3 {[%emt 0:08:43] A50: Queen's Fianchetto Defence (1 d4 Nf6 2 c4 b6)} (7. Qe2 d6 8. g3 c6 9. h4 h6 10. Be3 Qb6 11. Bxc5 Qxc5 12. f3 a6 13. Qf2 Qa5 14. Nge2 cxd5 15. cxd5 {0-1 (48) Khairullin,I (2649)-Tregubov,P (2571) Sochi 2015}) 7... d6 {[%emt 0:04:48]} 8. Nge2 {[%emt 0:00:17]} a6 {[%emt 0:01:40]} 9. Ng3 $146 {[%emt 0:17:15]} ({Predecessor:} 9. O-O Nh5 10. Kh2 O-O 11. Rb1 Qh4 12. Ng3 Ngf4 13. Nxh5 Nxh5 {1-0 (50) Purnama,T (2102)-Goh,W (2221) Kuala Lumpur 2001}) 9... O-O {[%emt 0:01:54]} 10. Qe2 {[%emt 0:07:11]} Re8 {[%emt 0:05:12]} 11. Be3 {[%emt 0:07:03]} Nf4 {[%emt 0:05:30]} 12. Bxf4 {[%emt 0:05:23]} exf4 {[%emt 0:01:17]} 13. Nh5 {[%emt 0:03:32]} Nxh5 {[%emt 0:02:13]} 14. Qxh5 {[%emt 0:00:07]} Qf6 {[%emt 0:02:40]} 15. O-O {[%emt 0:02:45]} Re5 {[%emt 0:04:10]} 16. Qf3 {[%emt 0:00:48]} Rg5 {[%emt 0:10:11]} 17. Kh2 $2 {[%emt 0:05:59]} (17. e5 $11 Rxe5 18. Ne4) 17... Bd4 {[%emt 0:02:07]} 18. Rac1 $2 {[%emt 0:08:50] [#]} (18. e5 Rxe5 19. Rab1) 18... Be5 {[%emt 0:02:23]} (18... Qh6 $1 $19 19. e5 Bxe5) 19. Rh1 {[%emt 0:05:16]} Qh6 {[%emt 0:06:54]} 20. Kg1 {[%emt 0:01:03] [#]} Rh5 $1 {[%emt 0:00:51]} 21. Kf1 {[%emt 0:01:55]} Rh4 {[%emt 0:01:17]} 22. Rg1 {[%emt 0:02:34]} g5 {[%emt 0:02:48]} 23. Qd1 {[%emt 0:00:31]} Bd7 {[%emt 0:05:24]} 24. b4 {[%emt 0:05:21]} Qf6 {[%emt 0:01:44]} 25. Nb1 {[%emt 0:01:00]} Bb2 {[%emt 0:01:10]} 26. Rc2 {[%emt 0:00:04]} Ba4 {[%emt 0:00:30]} 27. Nd2 {[%emt 0:01:46]} Bxc2 {[%emt 0:00:56]} 28. Qxc2 {[%emt 0:00:15]} Be5 {[%emt 0:01:07]} 29. Ke2 {[%emt 0:00:57]} Rh6 {[%emt 0:00:29]} 30. Nf3 {[%emt 0:01:15]} Rg6 {[%emt 0:00:30]} 31. Nh2 {[%emt 0:00:15]} h5 {[%emt 0:00:25]} 32. f3 {[%emt 0:00:01]} a5 {[%emt 0:01:08]} 33. b5 {[%emt 0:01:07]} Bd4 {[%emt 0:00:36]} 34. Rb1 {[%emt 0:00:11]} Bc5 {[%emt 0:01:01]} 35. Qb2 {[%emt 0:00:02]} Bd4 {[%emt 0:00:39]} 36. Qc2 {[%emt 0:00:01]} Qe5 {[%emt 0:00:50]} 37. Kd1 {[%emt 0:00:21]} Rg7 {[%emt 0:00:52]} 38. Be2 {[%emt 0:01:24]} Re8 {[%emt 0:02:57]} 39. Bd3 {[%emt 0:01:15]} Bg1 {[%emt 0:01:11]} 40. Nf1 {[%emt 0:00:00]} g4 {[%emt 0:00:00]} 41. hxg4 {[%emt 0:08:53]} hxg4 {[%emt 0:00:55]} 42. Qb2 {[%emt 0:00:50]} Bd4 {[%emt 0:00:35]} 43. Qe2 {[%emt 0:00:32]} g3 {[%emt 0:00:30]} 44. Nd2 {[%emt 0:01:43]} Rh7 {[%emt 0:00:14]} 45. Kc2 {[%emt 0:00:20]} a4 {[%emt 0:01:08]} 46. Qd1 {[%emt 0:01:26]} Rh2 {[%emt 0:00:30]} 47. Bf1 {[%emt 0:00:02]} Kg7 {[%emt 0:00:48]} 48. Rb4 {[%emt 0:01:01]} Ra8 {[%emt 0:00:36]} 49. Kc1 {[%emt 0:00:46]} Bc3 {[%emt 0:00:25]} 50. Rb1 {[%emt 0:00:20]} Rh1 {[%emt 0:00:40]} 51. Qe2 {[%emt 0:03:09]} Qd4 {[%emt 0:00:29]} 52. Kc2 {[%emt 0:00:36]} Rah8 {[%emt 0:00:58]} 53. Qd3 {[%emt 0:02:51]} Qxd3+ {[%emt 0:00:19]} 54. Kxd3 {[%emt 0:00:27]} Bxd2 {[%emt 0:00:27]} 55. Kxd2 {[%emt 0:00:01]} Rg1 {[%emt 0:00:19]} 56. a3 $19 {[%emt 0:03:41]} b6 {[%emt 0:01:28]} 57. Ke2 {[%emt 0:00:13]} Kf6 {[%emt 0:00:18]} 58. Rb4 {[%emt 0:00:02]} Rhh1 {[%emt 0:00:21]} 59. Rb1 {[%emt 0:00:01]} Ke5 {[%emt 0:00:09]} 60. Rd1 {[%emt 0:00:02]} f6 {[%emt 0:00:15]} 0-1

[Event "IIFL Wealth  4th Mumbai Junior U-13"]
[Site "Mumbai"]
[Date "2019.01.05"]
[Round "7"]
[White "Bagwe Gaurang"]
[Black "Parab Ram Vishal"]
[Result "1-0"]
[ECO "C64"]
[WhiteElo "1768"]
[BlackElo "1242"]
[Annotator "NA RC"]
[PlyCount "119"]
[EventDate "2018.12.30"]
[EventType "swiss"]
[EventCountry "IND"]
[SourceTitle "playchess.com"]
[Source "ChessBase"]
[SourceQuality "1"]
[TimeControl "40/5400+30:1800+30"]

1. e4 {[%emt 0:00:00]} e5 {[%emt 0:00:11]} 2. Nf3 {[%emt 0:00:00]} Nc6 {[%emt 0:00:52]} 3. Bb5 {[%emt 0:00:31]} Bc5 {[%emt 0:01:01]} 4. c3 {[%emt 0:00:16]} Nf6 {[%emt 0:01:14]} 5. d3 {[%emt 0:01:03]} d6 {[%emt 0:01:16]} 6. h3 {[%emt 0:05:56]} O-O {[%emt 0:02:01]} 7. O-O {[%emt 0:01:18]} Bd7 {[%emt 0:01:41]} 8. d4 {[%emt 0:04:25]} Bb6 {[%emt 0:02:06]} 9. Re1 {[%emt 0:10:47]} Re8 {[%emt 0:02:08]} 10. Bxc6 {[%emt 0:14:29]} Bxc6 {[%emt 0:02:04]} 11. d5 {[%emt 0:00:07]} Bd7 {[%emt 0:02:00]} 12. Nbd2 {[%emt 0:08:08]} Nh5 {[%emt 0:10:12]} 13. Nc4 {[%emt 0:04:01]} Nf6 {[%emt 0:04:28]} 14. a4 {[%emt 0:02:48]} c5 {[%emt 0:04:46]} 15. Bg5 {[%emt 0:12:35]} Bc7 {[%emt 0:01:53]} 16. Nfd2 {[%emt 0:01:16]} h6 {[%emt 0:03:58]} 17. Be3 {[%emt 0:02:46]} b5 {[%emt 0:06:44]} 18. axb5 {[%emt 0:01:07]} Bxb5 {[%emt 0:01:58]} 19. Qf3 {[%emt 0:00:49]} Bxc4 {[%emt 0:10:04]} 20. Nxc4 {[%emt 0:01:34]} a5 {[%emt 0:01:27]} 21. g4 {[%emt 0:02:43]} Nh7 {[%emt 0:02:05]} 22. Qg3 {[%emt 0:00:15]} Ng5 {[%emt 0:01:00]} 23. Bd2 {[%emt 0:00:32]} Qf6 {[%emt 0:01:05]} 24. Kg2 {[%emt 0:01:26]} Qg6 {[%emt 0:02:51]} 25. f3 {[%emt 0:00:25]} Rab8 {[%emt 0:01:38]} 26. h4 {[%emt 0:01:53]} Nh7 {[%emt 0:01:34]} 27. Re2 {[%emt 0:08:13]} Nf6 {[%emt 0:02:28]} 28. g5 {[%emt 0:02:03]} hxg5 {[%emt 0:00:51]} 29. hxg5 {[%emt 0:02:40]} Nxd5 {[%emt 0:01:38]} 30. exd5 {[%emt 0:00:25]} Qd3 {[%emt 0:00:16]} 31. Re4 {[%emt 0:00:33]} Qxd5 {[%emt 0:02:19]} 32. Rh1 {[%emt 0:02:17]} Rxb2 {[%emt 0:01:24]} 33. Nxb2 {[%emt 0:00:58]} Qxd2+ {[%emt 0:00:50]} 34. Qf2 {[%emt 0:00:47]} Qxf2+ {[%emt 0:01:20]} 35. Kxf2 {[%emt 0:00:19]} Rb8 {[%emt 0:00:40]} 36. Na4 {[%emt 0:00:35]} Rb3 {[%emt 0:01:09]} 37. Ree1 {[%emt 0:02:14]} Ra3 {[%emt 0:03:49]} 38. Ra1 {[%emt 0:00:20]} Rb3 {[%emt 0:00:50]} 39. Rhb1 {[%emt 0:00:23]} Rxb1 {[%emt 0:01:31]} 40. Rxb1 {[%emt 0:00:00]} Kf8 {[%emt 0:00:00]} 41. Rb7 {[%emt 0:01:21]} Bd8 {[%emt 0:01:40]} 42. Rd7 {[%emt 0:00:11]} Be7 {[%emt 0:00:58]} 43. Nb6 {[%emt 0:00:35]} Ke8 {[%emt 0:01:03]} 44. Ra7 {[%emt 0:00:06]} Bxg5 {[%emt 0:01:09]} 45. Nc8 {[%emt 0:00:10]} d5 {[%emt 0:01:15]} 46. Nd6+ {[%emt 0:01:10]} Kf8 {[%emt 0:01:09]} 47. Rxf7+ {[%emt 0:00:16]} Kg8 {[%emt 0:01:17]} 48. Ra7 {[%emt 0:00:24]} Bd2 {[%emt 0:01:22]} 49. Nb5 {[%emt 0:00:26]} d4 {[%emt 0:01:18]} 50. c4 {[%emt 0:00:18]} Kf8 {[%emt 0:02:49]} 51. Ke2 {[%emt 0:00:25]} Bb4 {[%emt 0:02:06]} 52. Kd3 {[%emt 0:00:09]} g5 {[%emt 0:02:02]} 53. Nd6 {[%emt 0:00:14]} Bc3 {[%emt 0:03:35]} 54. Ke4 {[%emt 0:00:10]} Bb4 {[%emt 0:00:57]} 55. Kf5 {[%emt 0:00:31]} d3 {[%emt 0:00:31]} 56. Kf6 {[%emt 0:00:09]} Kg8 {[%emt 0:00:29]} 57. Ra8+ {[%emt 0:00:01]} Kh7 {[%emt 0:00:46]} 58. Nf7 {[%emt 0:00:09]} d2 {[%emt 0:00:43]} 59. Nxg5+ {[%emt 0:00:14]} Kh6 {[%emt 0:00:11]} 60. Rh8# {[%emt 0:00:08]} 1-0

[Event "IIFL Wealth  4th Mumbai Junior U-13"]
[Site "Mumbai"]
[Date "2019.01.05"]
[Round "7"]
[White "Devesh Anand Naik"]
[Black "Potawad Anirudhha"]
[Result "1-0"]
[ECO "D78"]
[WhiteElo "1763"]
[BlackElo "1849"]
[Annotator "NA"]
[PlyCount "120"]
[EventDate "2018.12.30"]
[EventType "swiss"]
[EventCountry "IND"]
[SourceTitle "playchess.com"]
[Source "ChessBase"]
[SourceQuality "1"]
[TimeControl "40/5400+30:1800+30"]

{[%evp 17,102,25,40,32767,57,33,41,38,52,45,39,32767,32767,32767,32767,32767,41,52,42,63,158,134,324,351,459,522,462,319,304,304,347,410,406,405,532,488,491,420,32767,32767,32767,32767,32767,32767,32767,32767,32767,32767,32767,32767,157,141,231,32767,32767,32767,32767,32767,159,157,152,183,211,32767,168,32767,168,170,188,191,224,148,201,145,121,117,32767,32767,32767,32767,166,134,166,139,244,212,442]} 1. Nf3 {[%emt 0:00:00]} Nf6 {[%emt 0:01:17]} 2. g3 {[%emt 0:00:00]} g6 {[%emt 0:01:14]} 3. Bg2 {[%emt 0:00:00]} Bg7 {[%emt 0:00:16]} 4. O-O {[%emt 0:00:00]} O-O {[%emt 0:01:35]} 5. d4 {[%emt 0:02:42]} d5 {[%emt 0:03:24]} 6. c4 {[%emt 0:00:06]} c6 7. b3 {[%emt 0:02:25]} b6 {[%emt 0:08:41]} 8. Bb2 {[%emt 0:00:41] D78: Fianchetto Grünfeld: 6 0-0 c6} Bb7 {[%emt 0:01:16]} 9. Nc3 {[%emt 0:02:18]} Nbd7 {[%emt 0:03:23] LiveBook: 26 Games} 10. Rc1 {[%emt 0:00:46]} (10. Qc2 e6 11. e4 Nxe4 12. Nxe4 dxe4 13. Qxe4 Qc7 14. Ne5 Nxe5 15. dxe5 Rab8 {½-½ (38) Ding,L (2777)-Ivanchuk,V (2726) Huaian 2017}) 10... a6 {[%emt 0:02:48]} 11. Qc2 $146 {[%emt 0:09:33]} ({Predecessor:} 11. e3 e6 12. Qd2 Qe7 13. Rfd1 Rfd8 14. Qe1 Rac8 15. Na4 Ne4 16. Nd2 Nxd2 17. Rxd2 {1-0 (79) Calotescu,A (2176)-Badut,A (2015) Sovata 2000}) 11... Rc8 {[%emt 0:06:03]} 12. Rfd1 {[%emt 0:03:34]} Qc7 {[%emt 0:01:03]} 13. Qb1 {[%emt 0:02:20]} Qb8 {[%emt 0:01:33]} 14. Ne5 {[%emt 0:10:13]} e6 {[%emt 0:18:00]} 15. Nxd7 {[%emt 0:06:24]} Nxd7 {[%emt 0:00:04]} 16. e4 {[%emt 0:00:14]} dxe4 {[%emt 0:06:11]} 17. Nxe4 {[%emt 0:00:14]} Rfd8 {[%emt 0:03:17]} 18. c5 {[%emt 0:03:06]} Bf8 {[%emt 0:06:43]} ({Black should try} 18... Nf6 $1 $14) 19. Qc2 {[%emt 0:03:40]} f5 $2 {[%emt 0:11:31]} (19... Bg7 $16 {was necessary.} 20. Nd6 Rc7) 20. Ng5 {[%emt 0:04:09]} Bh6 {[%emt 0:03:25]} 21. Nxe6 {[%emt 0:06:10]} Re8 {[%emt 0:01:03] [#]} 22. Nf4 $1 {[%emt 0:00:54]} Bxf4 {[%emt 0:00:26]} 23. gxf4 {[%emt 0:00:33]} Qxf4 {[%emt 0:00:30]} 24. Qc4+ {[%emt 0:01:08]} Kf8 {[%emt 0:00:28]} 25. cxb6 {[%emt 0:01:49]} Qg4 {[%emt 0:03:56]} 26. h3 {[%emt 0:06:56]} Qf4 {[%emt 0:00:25]} 27. Rc2 {[%emt 0:02:49]} Qh4 {[%emt 0:04:50]} 28. Qc3 {[%emt 0:02:56]} Qf6 {[%emt 0:02:56]} 29. Qb4+ {[%emt 0:00:42]} Qe7 {[%emt 0:00:36]} 30. Qxe7+ {[%emt 0:02:51]} Kxe7 {[%emt 0:00:02]} 31. Rdc1 {[%emt 0:02:30]} Nxb6 {[%emt 0:02:22]} 32. Bxc6 {[%emt 0:00:12]} Bxc6 {[%emt 0:00:43]} 33. Rxc6 {[%emt 0:00:11]} Rxc6 {[%emt 0:03:17]} 34. Rxc6 {[%emt 0:00:09]} Rb8 {[%emt 0:00:05]} (34... Nd5 $16) 35. Rc7+ {[%emt 0:01:32]} Nd7 {[%emt 0:00:30]} 36. Ra7 {[%emt 0:00:25]} Rb6 {[%emt 0:00:51]} 37. Ba3+ {[%emt 0:00:11]} Ke8 {[%emt 0:00:30]} 38. Ra8+ {[%emt 0:00:22]} Kf7 {[%emt 0:00:12]} 39. Kg2 {[%emt 0:03:17]} Nf6 {[%emt 0:01:16]} 40. Ra7+ {[%emt 0:00:00]} Ke8 {[%emt 0:00:00]} 41. Bc5 {[%emt 0:02:51]} Re6 {[%emt 0:03:41]} 42. b4 {[%emt 0:01:18]} h5 {[%emt 0:01:27]} 43. a4 {[%emt 0:00:55]} g5 {[%emt 0:01:26]} 44. Kf3 {[%emt 0:01:38]} Nd5 {[%emt 0:04:40]} 45. Ra8+ {[%emt 0:01:42]} Kd7 {[%emt 0:06:06]} 46. Rf8 {[%emt 0:02:03]} g4+ {[%emt 0:03:10]} 47. hxg4 {[%emt 0:00:11]} fxg4+ {[%emt 0:00:07]} 48. Kg3 {[%emt 0:00:16]} Rf6 {[%emt 0:03:31]} 49. Rxf6 {[%emt 0:00:42]} Nxf6 {[%emt 0:00:08] [#]} 50. Kh4 $1 {[%emt 0:00:21]} Kc6 {[%emt 0:03:48]} (50... Ne4 $142) 51. Kg5 {[%emt 0:19:21]} Kd5 $18 {[%emt 0:03:04]} (51... Ne4+ {was called for.} 52. Kxh5 Kd5) 52. b5 {[%emt 0:10:32]} axb5 {[%emt 0:02:05]} 53. axb5 {[%emt 0:00:07]} Ne4+ {[%emt 0:00:57]} 54. Kxh5 {[%emt 0:00:12]} g3 {[%emt 0:00:29]} 55. fxg3 {[%emt 0:00:25]} Nxg3+ {[%emt 0:00:08]} 56. Kg4 {[%emt 0:00:17]} Ne4 {[%emt 0:01:22]} 57. b6 {[%emt 0:00:12]} Nf6+ {[%emt 0:03:40]} 58. Kf3 {[%emt 0:01:26]} Nd7 {[%emt 0:00:38]} 59. Ke3 {[%emt 0:00:20]} Kc6 {[%emt 0:01:45]} 60. Kd3 {[%emt 0:00:28]} Kd5 {[%emt 0:00:32] Ke4+} 1-0